[Event "1st Doppelbauer Kiel IM 2022"]
[Site "Kiel"]
[Date "2022.06.30"]
[Round "1.1"]
[White "Lanka, Zigurds"]
[Black "Beeck, Mats"]
[Result "1/2-1/2"]
[ECO "C65"]
[WhiteElo "2397"]
[BlackElo "2169"]
[Annotator "TA"]
[PlyCount "63"]
[EventDate "2022.06.30"]
[EventType "tourn"]
[EventCountry "GER"]
[SourceTitle "playchess.com"]
[Source "ChessBase"]
[SourceQuality "1"]
[TimeControl "40/5400+30:1800+30"]

{[%evp 12,63,13,5,25,6,9,8,8,8,6,6,19,18,20,12,22,10,14,-11,-13,-14,-9,-16,-9,-47,-32,-22,-51,-57,-49,-34,-19,-56,-16,-40,-42,-51,-6,-3,0,-5,-5,-4,-4,-47,0,0,15,15,15,15,15,15]} 1. e4 e5 2. Nf3 Nc6 3. Bb5 Nf6 4. d3 Bc5 5. c3 O-O 6. O-O d6 7. h3 {7.Re1 is setting a new trend.} a6 {C65: Ruy Lopez: Berlin Defence (3...Nf6), unusual lines and 4 0-0 Bc5.} 8. Ba4 Re8 9. Re1 h6 10. Nbd2 {[%cal Bb1d2,Bd2f1,Bf1e3,Be3c4][%mdl 32]} b5 11. Bc2 a5 12. Nf1 d5 13. exd5 Qxd5 14. a4 b4 {[#]} 15. Ne3 $146 ({Predecessor:} 15. Bb3 Qd6 16. Be3 bxc3 17. bxc3 Be6 18. Bxc5 Qxc5 19. Bxe6 Rxe6 20. d4 Qd6 21. Ne3 exd4 22. cxd4 {½-½ (52) Sherwood,R (2357)-Sherwood,A (2356) ICCF email 2020}) 15... Qd8 16. Nc4 {[%cal Rc4e5]} e4 (16... bxc3 {is interesting.} 17. bxc3 e4 18. dxe4 Qxd1 19. Bxd1 Rxe4 20. Ne3 Ba6) 17. dxe4 Qxd1 $1 18. Rxd1 Nxe4 19. Be3 {[%cal Oc4e5] [#] Black must now prevent Nce5!} bxc3 20. bxc3 {Hoping for Bxe4.} Bxe3 21. Nxe3 Nxc3 {[%cal Be4c3,Bc3e2,Be2f4][%mdl 32]} 22. Rd2 Ba6 23. Ra3 Ne2+ 24. Kh2 $1 Nb4 25. Bd1 {[%cal Bc2d1,Bd1b3,Bb3c4][%mdl 32]} Nf4 26. Rc3 c6 27. Bb3 Nfd3 28. Nc4 Bxc4 (28... Nc5 $1 $15 {was preferrable.} 29. Nd6 Nxb3 30. Rxb3 Re2) 29. Bxc4 $11 {The position is equal.} Ne5 30. Nxe5 Rxe5 31. Rd7 Rf5 32. Rf3 {[%emt 0:15:35] Weighted Error Value: White=0.09 (flawless) /Black=0.08 (flawless)} 1/2-1/2

[Event "1st Doppelbauer Kiel IM 2022"]
[Site "Kiel"]
[Date "2022.06.30"]
[Round "1.2"]
[White "Zavgorodniy, Sergiy"]
[Black "Fromm, Marius"]
[Result "1/2-1/2"]
[ECO "B50"]
[WhiteElo "2423"]
[BlackElo "2317"]
[Annotator "TA"]
[PlyCount "115"]
[EventDate "2022.06.30"]
[EventType "tourn"]
[EventCountry "GER"]
[SourceTitle "playchess.com"]
[Source "ChessBase"]
[SourceQuality "1"]
[TimeControl "40/5400+30:1800+30"]

{[%evp 9,115,0,17,9,14,0,19,2,8,0,-8,2,0,-16,-17,-16,-11,-11,-11,-18,-9,-10,-13,-22,-19,-19,-10,-9,-19,-17,0,-39,-39,-41,-41,-54,-54,-89,-63,-126,197,-64,-31,-114,0,-62,-46,-108,-108,-106,-53,-47,-34,-47,-38,-52,-39,-130,-138,-189,-198,-193,-189,-220,-213,-246,-223,-247,-241,-280,-268,-313,-301,-269,-73,-74,-91,-81,-64,-323,-316,-316,-316,-545,-221,-218,-158,-206,-133,-144,-39,-42,-54,-133,-15,-14,-29,-33,0,0,0,0,0,0,0,0,0,0]} 1. e4 {[%emt 0:00:07]} c5 {[%emt 0:00:06]} 2. Nf3 {[%emt 0:00:05]} d6 3. c3 Nf6 4. Be2 Bd7 5. d3 g6 6. O-O {B50: Sicilian: 2...d6, Miscellaneous.} Bg7 7. Re1 Nc6 8. h3 O-O 9. Bf1 e5 10. a3 b5 {[%cal Bb7b5,Bb5b4][%mdl 32] [#]} 11. Be3 $146 ({Predecessor:} 11. Bg5 h6 12. Be3 a6 13. Nbd2 Re8 14. b4 cxb4 15. axb4 d5 16. Bc5 Be6 17. exd5 Nxd5 {½-½ (40) Gallagher,J (2543)-Lim,Y (2346) Mallorca 2004}) 11... a5 12. a4 b4 13. Nbd2 Re8 14. Qc2 Rc8 15. Nc4 Qc7 16. Bg5 Nh5 17. Ne3 Be6 18. Nd5 Bxd5 19. exd5 Ne7 20. Bxe7 Rxe7 21. Nd2 Nf6 22. Qb3 Rb8 {And now ...bxc3 would win.} 23. Qc4 Bh6 24. Nb3 (24. Ne4 $15 Ne8 25. h4) 24... Qb7 $2 {[%mdl 8192]} (24... Qd8 $17 {and life is bright. Hoping for ...Reb7.} 25. Re2 Reb7) 25. Rab1 $2 (25. Nxa5 $18 Qxd5 26. Qxd5 Nxd5 27. c4 (27. Nc6 bxc3 28. bxc3 Bd2 $18)) 25... Rc7 26. Be2 (26. Nxa5 $15 Qxd5 27. Qxd5 Nxd5 28. Nc4) 26... Bg7 ({Resist} 26... Nxd5 27. Bf3 e4 28. Qxe4 (28. Bxe4 Nb6 $11) 28... bxc3 29. Nxa5 $14 (29. Qxd5 Qxb3 30. Qxd6 Rcc8 $11)) (26... Qxd5 $17 {aiming for ...bxc3.} 27. Qxd5 Nxd5) 27. Bf3 (27. Nxa5 $11 Qxd5 28. Bf3) 27... Qa7 28. Nd2 (28. Qh4 $15) 28... Bh6 $1 $36 {[%mdl 2048] Black has strong initiative.} 29. Nf1 Nd7 (29... Rcb7 $17 {Threatens to win with ...bxc3.} 30. Qa2 Qb6) 30. Qh4 $1 $15 Bg7 31. Nd2 Nb6 {[%cal Bd7b6,Bb6d5,Bd5f4][%mdl 32]} 32. Ne4 Rd7 $1 {[%cal Bc7d7,Bd7d8,Bd8g8][%mdl 32]} 33. g4 (33. Nf6+ $15 Bxf6 34. Qxf6) 33... Nxd5 $17 34. c4 (34. Ng5 $17 {might work better.} Nf6 35. c4) 34... Nf4 $19 35. g5 Kh8 36. Bg4 Rdd8 ({Stronger than} 36... Nxd3 37. Re3 Nf4 38. Bxd7 Qxd7 39. Rd1 $11) 37. Re3 Qe7 38. Rbe1 Rg8 39. Rf3 Rbf8 40. Nf6 Bxf6 41. gxf6 Qd8 (41... Qe8 $19 42. Rxf4 g5) 42. Qg5 $17 Ne6 43. Bxe6 fxe6 44. Re4 $2 {[%mdl 8192] [#]} (44. d4 $1 $15 cxd4 45. c5) 44... Rf7 $1 $19 45. Rh4 Rgf8 {[%cal Rf7f6]} 46. Rh6 $2 (46. Qh6 {was worth a try.}) 46... Qa8 (46... Rxf6 $142 47. Qh4 Rxf3 48. Rxh7+ Kg8 49. Rh8+ Kf7 50. Qxd8 Rxd8 51. Rxd8 Rxd3) 47. Rg3 {[%cal Bf3g3,Bg3g6,Bg6e6,Be6d6,Bd6d8][%mdl 32]} Rxf6 48. Qh4 Qb7 49. Rgxg6 Rxf2 (49... Rxg6+ $17 50. Rxg6 Qd7) 50. Qxf2 $15 Rxf2 51. Kxf2 $17 {[%mdl 4096] Endgame [#] KQ-KRR} e4 (51... d5 $1 $17 52. Rxe6 dxc4 53. Re8+ Kg7) 52. Rxe6 $11 exd3 53. Rxd6 ({Not} 53. Re8+ $2 Kg7 54. Rhe6 Kf7 $19) 53... Qe4 {...Qf4+ is the strong threat.} 54. Rd8+ {The position is equal.} Kg7 55. Rhd6 Qe2+ 56. Kg3 Qe5+ 57. Kf3 Qf5+ {[%emt 0:57:38]} 58. Kg3 {[%emt 0:57:35] And White is the lucky defender.  Weighted Error Value: White=0.37/Black=0.36} 1/2-1/2

[Event "1st Doppelbauer Kiel IM 2022"]
[Site "Kiel"]
[Date "2022.06.30"]
[Round "1.3"]
[White "Junge, Ralph"]
[Black "Arndt, Magnus"]
[Result "0-1"]
[ECO "A45"]
[WhiteElo "2224"]
[BlackElo "2343"]
[Annotator "TA"]
[PlyCount "80"]
[EventDate "2022.06.30"]
[EventType "tourn"]
[EventCountry "GER"]
[SourceTitle "playchess.com"]
[Source "ChessBase"]
[SourceQuality "1"]
[TimeControl "40/5400+30:1800+30"]

{[%evp 9,80,9,10,10,10,10,21,26,31,22,27,35,17,23,42,35,30,16,7,-5,-14,-3,-3,-96,-100,-139,-145,-358,-351,-302,-171,-260,-265,-260,-254,-249,-264,-303,-313,-315,-306,-300,-289,-300,-241,-339,-262,-459,-449,-467,-458,-490,-491,-475,-417,-461,-437,-593,-615,-597,-550,-584,-584,-548,-574,-575,-575,-566,-537,-537,-526,-579,-563]} 1. d4 Nf6 2. Bg5 Ne4 3. Bf4 d5 4. e3 c5 5. Nd2 Nxd2 6. Qxd2 {A45: Trompowsky Attack.} Nc6 {6...cxd4 is not played anymore.} 7. Nf3 e6 8. Be2 {The position is equal.} Bd6 9. dxc5 Bxc5 10. O-O O-O 11. Rfd1 {[#]} Qf6 $146 ({Predecessor:} 11... Qe7 12. Bg3 Rd8 13. a3 a5 14. Bb5 Bd7 15. Bc7 Rdc8 16. Bxc6 Rxc7 17. Bxd7 Rxd7 {½-½ (60) Halkias,S (2502)-Andres Gonzalez,A (2362) Aviles 2000}) 12. c4 dxc4 13. Bxc4 e5 {[%cal Be6e5,Be5e4][%mdl 32]} 14. Bg5 Qg6 15. Qd5 {[%csl LRc5,LRe5]} Bg4 {Strongly threatening ...Bxf3.} 16. Bh4 {[#]} (16. Nxe5 Nxe5 17. Qxe5 Bxd1 18. Rxd1 h6 $17) (16. Qxc5 $11 Bxf3 17. gxf3 Qxg5+ 18. Kh1) 16... e4 $1 $36 {[%mdl 2048] And now ...Bxf3 would win. Black is in control.} 17. Bg3 {[#]} Be7 {Threatens to win with ...Rad8.} ({Of course not} 17... exf3 $6 18. Qxc5 (18. gxf3 Bxe3 19. Bd3 Qh5 $17) 18... fxg2 19. Rd6 $11) 18. Nh4 $2 {This costs White the game.} (18. Ne5 $17 Nxe5 19. Qxe5 Bxd1 20. Rxd1) 18... Bxh4 $19 19. Bxh4 Bf3 ({But not} 19... Bxd1 $2 20. Qxd1 Ne5 21. Be2 $19) (19... Be6 $142 20. Qd6 Bxc4 21. Qxg6 hxg6) 20. Qg5 (20. Bf1 $142 Bxd1 21. Rxd1) 20... Qxg5 ({Inferior is} 20... Bxd1 21. Qxg6 hxg6 22. Rxd1 $17) 21. Bxg5 Bxd1 22. Rxd1 h6 23. Bf4 Rfd8 24. Rb1 Rd2 25. g4 Rad8 26. Bb3 Rc8 27. a3 (27. Rc1 {was worth a try.}) 27... a6 28. Kf1 $2 (28. Rc1) 28... Na5 29. Bd1 Nc4 30. Ke1 Rxb2 31. Rc1 Nb6 32. Ra1 Nd7 {Prevents Be5. Black is clearly winning.} 33. h4 Nc5 {...Nd3+ is the strong threat.} 34. Bg3 Nd3+ 35. Kf1 Rc1 36. Rxc1 Nxc1 37. g5 hxg5 38. hxg5 Nd3 39. Bg4 g6 {Inhibits Bf5.} 40. Bc8 a5 {Weighted Error Value: White=0.40/Black=0.13 (very precise)} 0-1

[Event "1st Doppelbauer Kiel IM 2022"]
[Site "Kiel"]
[Date "2022.06.30"]
[Round "1.4"]
[White "Ermitsch, Magnus"]
[Black "Barseghyan, Armen Ar."]
[Result "0-1"]
[ECO "B36"]
[WhiteElo "2222"]
[BlackElo "2378"]
[Annotator "TA"]
[PlyCount "86"]
[EventDate "2022.06.30"]
[EventType "tourn"]
[EventCountry "GER"]
[SourceTitle "playchess.com"]
[Source "ChessBase"]
[SourceQuality "1"]
[TimeControl "40/5400+30:1800+30"]

{[%evp 17,86,26,31,30,40,34,37,33,70,70,66,69,64,65,63,50,52,57,70,31,33,29,47,-14,-17,-20,-28,-17,0,0,0,-14,-15,-15,-15,-64,-71,-75,-41,-95,-95,-128,-113,-248,-211,-215,-56,-56,-56,-56,-56,-56,-56,-91,-85,-88,-88,-713,-381,-393,-371,-822,-788,-29991,-77,-29992,-29993,-29993,-29994,-29997,-29998]} 1. e4 {[%emt 0:00:30]} c5 {[%emt 0:00:30]} 2. Nf3 {[%emt 0:00:30]} Nc6 {[%emt 0:00:30]} 3. d4 {[%emt 0:00:30]} cxd4 {[%emt 0:00:30]} 4. Nxd4 {[%emt 0:00:30]} g6 {[%emt 0:00:30]} 5. c4 {[%emt 0:00:30]} Nf6 {[%emt 0:00:30]} 6. Nc3 {[%emt 0:00:30]} d6 {[%emt 0:00:30]} 7. Be2 {[%emt 0:00:30]} Nxd4 {[%emt 0:00:30]} 8. Qxd4 {[%emt 0:00:30]} Bg7 {[%emt 0:00:30]} 9. O-O {[%emt 0:00:30]} O-O {[%emt 0:00:30]} 10. Qd3 {[%emt 0:00:30] B36: Sicilian: Maroczy Bind: Gurgenidze System.} a5 {[%emt 0:00:30]} 11. Be3 {[%emt 0:00:30]} a4 {[%emt 0:00:30]} 12. Bd4 {[%emt 0:00:30] White is slightly better.} Bd7 {[%emt 0:00:30]} 13. b4 {[%emt 0:00:30]} axb3 {[%emt 0:00:30]} 14. axb3 {[%emt 0:00:30]} Bc6 {[%emt 0:00:30]} 15. b4 {[%emt 0:00:30]} b6 {[%emt 0:00:30]} 16. Nd5 {[%emt 0:00:30]} Bxd5 {[%emt 0:00:30]} 17. cxd5 {[%emt 0:00:30]} Qc7 {[%emt 0:00:30]} 18. Qe3 {[%emt 0:00:30]} Rxa1 $1 {[%emt 0:00:30]} 19. Rxa1 {[%emt 0:00:30] [#]} Rc8 $146 {[%emt 0:00:30]} ({Predecessor:} 19... Nd7 20. Bxg7 Kxg7 21. Bb5 Rb8 22. Bc6 Ne5 23. f4 Ng4 24. Qd4+ Kg8 25. h3 Nf6 {1-0 (36) Asadli,V (2538)-Fidalgo,A (2282) Lisbon 2020}) 20. Bxb6 {[%emt 0:00:30]} (20. h3 $14) 20... Qc2 $11 {[%emt 0:00:30][%cal Of6g4]} 21. Bd3 {[%emt 0:00:30]} Ng4 {[%emt 0:00:30][%csl LRa1,LRe3][%mdl 1024] Black has compensation.} 22. Qg3 {[%emt 0:00:30]} Qc3 {[%emt 0:00:30]} 23. Rf1 {[%emt 0:00:30]} Rb8 {[%emt 0:00:30]} 24. Ba7 {[%emt 0:00:30] A strong pair of Bishops.} Ra8 {[%emt 0:00:30]} 25. Qxg4 {[%emt 0:00:30][%cal Og4d7]} Rxa7 {[%emt 0:00:30]} 26. Be2 {[%emt 0:00:30]} (26. Rd1 $11) 26... h5 $15 {[%emt 0:00:30]} 27. Qh3 {[%emt 0:00:30]} Qxb4 {[%emt 0:00:30]} 28. Qd3 {[%emt 0:00:30]} ({White should try} 28. Qc8+ $15 Kh7 29. Bf3) 28... Ra4 $17 {[%emt 0:00:30]} 29. f3 {[%emt 0:00:30]} Ra2 {[%emt 0:00:30]} 30. Rb1 {[%emt 0:00:30]} (30. Rd1 $17 {was worth a try.}) 30... Qc5+ {[%emt 0:00:30]} 31. Kf1 {[%emt 0:00:30] [#]} Ra3 $2 {[%emt 0:00:30]} (31... Bd4 $1 $19 {[%cal Rd4g1] aiming for ...Bg1.} 32. f4 Bg1) 32. Qb5 $1 $15 {[%emt 0:00:30]} Qe3 {[%emt 0:00:30] Threatens to win with ...Bd4.} 33. Qe8+ {[%emt 0:00:30]} Bf8 $1 {[%emt 0:00:30]} 34. Qb8 {[%emt 0:00:30]} ({Of course not} 34. Bc4 h4 35. h3 Rc3 $17) 34... Ra2 {[%emt 0:00:30][%cal Ba3a2,Ba2d2,Bd2g2][%mdl 32]} 35. Qb5 {[%emt 0:00:30]} h4 $40 {[%emt 0:00:30][%cal Oh4h3][%mdl 128] White is in trouble.} 36. Qd3 {[%emt 0:00:30]} Qf4 {[%emt 0:00:30] Black is more active.} 37. Kg1 {[%emt 0:00:30][%mdl 8192]} (37. Qc4 $17 Ra5 38. Qc8) 37... Rd2 {[%emt 0:00:30]} 38. Qc4 {[%emt 0:00:30]} Bg7 {[%emt 0:00:30] And now ...Bd4+ would win.} ({Avoid the trap} 38... Qe3+ $2 39. Kf1 $19) 39. Qc8+ $2 {[%emt 0:00:30]} (39. e5 Qxe5 40. Kf1) 39... Kh7 $19 {[%emt 0:00:30] ( -> ...Qe3+)} 40. Bf1 {[%emt 0:00:30]} Bd4+ {[%emt 0:00:30]} 41. Kh1 {[%emt 0:30:30]} Qe3 {[%emt 0:30:30][%csl Gd4][%cal Re3g1] Black mates.} 42. Ba6 {[%emt 0:00:30] [#]} Rxg2 $3 {[%emt 0:00:30][%mdl 512]} 43. Qc1 {[%emt 0:00:30]} (43. Qg8+ Kxg8) 43... Qf2 {[%emt 0:00:30] Weighted Error Value: White=0.52/Black=0.29 (precise)} 0-1

[Event "1st Doppelbauer Kiel IM 2022"]
[Site "Kiel"]
[Date "2022.06.30"]
[Round "1.5"]
[White "Fischer, Daniel"]
[Black "Kopylov, Daniel"]
[Result "0-1"]
[ECO "B32"]
[WhiteElo "2367"]
[BlackElo "2292"]
[Annotator "TA"]
[PlyCount "76"]
[EventDate "2022.06.30"]
[EventType "tourn"]
[EventCountry "GER"]
[SourceTitle "playchess.com"]
[Source "ChessBase"]
[SourceQuality "1"]
[TimeControl "40/5400+30:1800+30"]

{[%evp 14,76,19,12,33,33,21,25,30,30,18,0,25,-28,-44,-42,-58,-100,-120,-146,-139,-164,-185,-256,-256,-247,-253,-231,-189,-403,-395,-421,-435,-649,-473,-591,-556,-846,-831,-826,-823,-808,-773,-895,-913,-867,-879,-892,-870,-1032,-1047,-1035,-991,-964,-1018,-2078,-1035,-1037,-1040,-1068,-1046,-1138,-1091,-1045,-1033]} 1. e4 c5 2. Nf3 Nc6 3. d4 cxd4 4. Nxd4 e5 5. Nb5 d6 6. N1c3 a6 7. Na3 Be6 8. Nc4 Rb8 {Nowadays more popular than 8...b5. B32: Sicilian: Löwenthal and Kalashnikov Variations.} (8... b5 $5 {[%cal Rb5c4]} 9. Ne3 Nf6 $11) 9. Nd5 Bxd5 10. exd5 ({Reject} 10. Qxd5 Nd4 11. Kd1 b5 $15) 10... Nce7 {White has an edge.} 11. a4 {[%cal Ba2a4,Ba4a5][%mdl 32]} Nf6 {[%cal Bg8f6,Bf6d5,Bd5b4][%mdl 32]} 12. g4 {[#] And now g5 would win.} Qc7 $146 (12... Nexd5 $2 13. g5 $18) (12... Nfxd5 $2 13. Bg2 $18) ({Predecessor:} 12... h6 13. h4 Ng6 14. a5 Be7 15. Ne3 Nd7 16. h5 Nf4 17. Nf5 O-O 18. Bxf4 exf4 {½-½ (41) Marek,M (2366)-Sokolin,L (2482) Ledyard 2022}) 13. g5 (13. b3 $142) 13... Nfxd5 $11 14. a5 Rd8 15. Qd3 Nb4 16. Qb3 {[#]} Nec6 {Hoping for ...d5.} 17. c3 d5 18. Nb6 {[#]} (18. Nd2 $142) 18... Nxa5 $1 $19 {[%mdl 512]} 19. Rxa5 {Threatens to win with Be3.} Qxb6 20. Ra3 Qc6 {Strongly threatening ...d4.} 21. Rg1 $2 (21. Be2 d4 22. O-O) 21... d4 22. Bg2 {Inhibits Qe4+.} Nd3+ {Black is clearly winning.} 23. Kd1 (23. Kf1 $142 e4 24. Ra1) 23... Qd7 24. Ra5 Nc5 25. Qc4 dxc3+ 26. Ke2 cxb2 27. Be3 b5 28. Qc3 Qg4+ 29. f3 {[#]} Qxg2+ $3 {[%mdl 512]} 30. Rxg2 {[#]} b1=Q $1 31. Bxc5 (31. Ra1 Qf5) 31... Qd1+ 32. Kf2 Bxc5+ 33. Qxc5 Qd2+ 34. Kg3 Qxa5 35. Qxe5+ Kf8 36. Re2 Qb4 37. Rc2 Qe7 38. Qf4 h6 {White did not feel at home in the position after the opening.  Weighted Error Value: White=0.65/Black=0.11 (very precise)} 0-1